[Event "Late-Titled-Tuesday-Blitz-March-26-2024"]
[Site "Chess.com"]
[Date "2024.03.26"]
[Round "6"]
[White "vangulio"]
[Black "bilelou"]
[Result "1/2-1/2"]
[WhiteElo "2559"]
[BlackElo "2703"]
[TimeControl "180+1"]
[EndTime "15:09:31 PDT"]
[Termination "Game drawn - insufficient material"]

1. e4 {[%clk 0:02:49.7]} 1... c5 {[%clk 0:02:56.1]} 2. Nf3 {[%clk 0:02:49.6]}
2... g6 {[%clk 0:02:46.9]} 3. d4 {[%clk 0:02:48.6]} 3... cxd4 {[%clk 0:02:47.8]}
4. Qxd4 {[%clk 0:02:46.5]} 4... Nf6 {[%clk 0:02:48.1]} 5. e5 {[%clk 0:02:46.1]}
5... Nc6 {[%clk 0:02:48.5]} 6. Qa4 {[%clk 0:02:45.9]} 6... Nd5 {[%clk
0:02:48.9]} 7. Qb3 {[%clk 0:02:39]} 7... Nc7 {[%clk 0:02:43.6]} 8. Bc4 {[%clk
0:02:32.9]} 8... Ne6 {[%clk 0:02:42.8]} 9. O-O {[%clk 0:02:31.2]} 9... Bg7
{[%clk 0:02:35.3]} 10. Re1 {[%clk 0:02:27.2]} 10... O-O {[%clk 0:02:28.8]} 11.
Nc3 {[%clk 0:02:08.9]} 11... a6 {[%clk 0:02:18.7]} 12. Bd5 {[%clk 0:02:00.7]}
12... b5 {[%clk 0:02:13.3]} 13. a4 {[%clk 0:01:53.5]} 13... b4 {[%clk
0:01:25.7]} 14. Bxc6 {[%clk 0:01:51.5]} 14... dxc6 {[%clk 0:01:18.8]} 15. Qxb4
{[%clk 0:01:49.4]} 15... c5 {[%clk 0:01:14.3]} 16. Qh4 {[%clk 0:01:45.2]} 16...
Bb7 {[%clk 0:01:13.2]} 17. Ng5 {[%clk 0:01:43]} 17... Nxg5 {[%clk 0:01:03.6]}
18. Bxg5 {[%clk 0:01:43.9]} 18... Qd4 {[%clk 0:00:51.7]} 19. Bxe7 {[%clk
0:01:39.1]} 19... Rfe8 {[%clk 0:00:51.9]} 20. Bf6 {[%clk 0:01:28.4]} 20... Qxh4
{[%clk 0:00:40]} 21. Bxh4 {[%clk 0:01:29.3]} 21... Bxe5 {[%clk 0:00:39.8]} 22.
Rad1 {[%clk 0:01:14.3]} 22... Bc6 {[%clk 0:00:38.2]} 23. a5 {[%clk 0:01:04.1]}
23... Rab8 {[%clk 0:00:36.4]} 24. Rxe5 {[%clk 0:00:56.2]} 24... Rxe5 {[%clk
0:00:31.5]} 25. Bg3 {[%clk 0:00:56.3]} 25... Ree8 {[%clk 0:00:22.9]} 26. Bxb8
{[%clk 0:00:55.3]} 26... Rxb8 {[%clk 0:00:23.8]} 27. b3 {[%clk 0:00:54]} 27...
c4 {[%clk 0:00:24.1]} 28. Rb1 {[%clk 0:00:36.6]} 28... cxb3 {[%clk 0:00:19.3]}
29. Rxb3 {[%clk 0:00:35.7]} 29... Rc8 {[%clk 0:00:19.1]} 30. f3 {[%clk
0:00:32.3]} 30... Bd7 {[%clk 0:00:19.1]} 31. Kf2 {[%clk 0:00:31.3]} 31... Be6
{[%clk 0:00:19.2]} 32. Ra3 {[%clk 0:00:31.7]} 32... Kg7 {[%clk 0:00:19.5]} 33.
Ke3 {[%clk 0:00:31.4]} 33... Kf6 {[%clk 0:00:20]} 34. Ne4+ {[%clk 0:00:30.5]}
34... Ke5 {[%clk 0:00:19.2]} 35. c3 {[%clk 0:00:27.1]} 35... Bd5 {[%clk
0:00:17]} 36. Nf2 {[%clk 0:00:19.2]} 36... Bc4 {[%clk 0:00:15.4]} 37. Ne4 {[%clk
0:00:17.2]} 37... f5 {[%clk 0:00:13.7]} 38. Nd2 {[%clk 0:00:17.7]} 38... f4+
{[%clk 0:00:12.7]} 39. Kf2 {[%clk 0:00:17.5]} 39... Bd3 {[%clk 0:00:12.3]} 40.
c4 {[%clk 0:00:14.1]} 40... Bf5 {[%clk 0:00:09.8]} 41. Rb3 {[%clk 0:00:10.9]}
41... Kd4 {[%clk 0:00:09.2]} 42. Rb6 {[%clk 0:00:10.5]} 42... Kc3 {[%clk
0:00:08.9]} 43. Nf1 {[%clk 0:00:10]} 43... Rxc4 {[%clk 0:00:06]} 44. Rxa6 {[%clk
0:00:10.2]} 44... Kb4 {[%clk 0:00:06.5]} 45. Ra7 {[%clk 0:00:09.4]} 45... Rc2+
{[%clk 0:00:06.7]} 46. Ke1 {[%clk 0:00:09.5]} 46... Rc1+ {[%clk 0:00:06.6]} 47.
Ke2 {[%clk 0:00:08.4]} 47... Rc2+ {[%clk 0:00:07]} 48. Kd1 {[%clk 0:00:08]}
48... Rxg2 {[%clk 0:00:06.9]} 49. a6 {[%clk 0:00:08.7]} 49... Bd3 {[%clk
0:00:05.9]} 50. Rb7+ {[%clk 0:00:04.4]} 50... Kc5 {[%clk 0:00:05.4]} 51. a7
{[%clk 0:00:05.3]} 51... Ra2 {[%clk 0:00:04.6]} 52. Rc7+ {[%clk 0:00:04.1]}
52... Kd4 {[%clk 0:00:04.6]} 53. Nd2 {[%clk 0:00:04]} 53... Ke3 {[%clk
0:00:04.3]} 54. Nb3 {[%clk 0:00:03.8]} 54... Ra3 {[%clk 0:00:03]} 55. Re7+
{[%clk 0:00:04.3]} 55... Kxf3 {[%clk 0:00:02.5]} 56. Nc1 {[%clk 0:00:05.2]}
56... Be4 {[%clk 0:00:02.2]} 57. Rc7 {[%clk 0:00:05.4]} 57... Bd5 {[%clk
0:00:02]} 58. Rc5 {[%clk 0:00:05.4]} 58... Ke4 {[%clk 0:00:02.4]} 59. Kd2 {[%clk
0:00:05.4]} 59... f3 {[%clk 0:00:02.9]} 60. Rc3 {[%clk 0:00:05.6]} 60... Rxa7
{[%clk 0:00:02.3]} 61. Rd3 {[%clk 0:00:05.2]} 61... Ra5 {[%clk 0:00:01.9]} 62.
Re3+ {[%clk 0:00:05.6]} 62... Kd4 {[%clk 0:00:01.9]} 63. Rd3+ {[%clk 0:00:06.3]}
63... Kc5 {[%clk 0:00:02.5]} 64. Re3 {[%clk 0:00:07]} 64... Kd6 {[%clk
0:00:03.4]} 65. Ke1 {[%clk 0:00:07.1]} 65... Ra4 {[%clk 0:00:03.9]} 66. Nd3
{[%clk 0:00:07.7]} 66... Ra1+ {[%clk 0:00:04.2]} 67. Kf2 {[%clk 0:00:08.2]}
67... Ra2+ {[%clk 0:00:05.1]} 68. Kg3 {[%clk 0:00:08.7]} 68... Re2 {[%clk
0:00:05.8]} 69. Rxe2 {[%clk 0:00:08]} 69... fxe2 {[%clk 0:00:06.2]} 70. Kf2
{[%clk 0:00:08.9]} 70... Bc4 {[%clk 0:00:06.5]} 71. Nf4 {[%clk 0:00:09.4]} 71...
Ke5 {[%clk 0:00:06.9]} 72. Nh3 {[%clk 0:00:10]} 72... Kf5 {[%clk 0:00:07.1]} 73.
Ng1 {[%clk 0:00:10.3]} 73... g5 {[%clk 0:00:07.6]} 74. Nf3 {[%clk 0:00:10.6]}
74... g4 {[%clk 0:00:07.8]} 75. Nd4+ {[%clk 0:00:11.2]} 75... Kg5 {[%clk
0:00:08.2]} 76. Nc2 {[%clk 0:00:12.1]} 76... Kf4 {[%clk 0:00:07.5]} 77. Ne3
{[%clk 0:00:12.5]} 77... Bd3 {[%clk 0:00:07.1]} 78. Ng2+ {[%clk 0:00:12.6]}
78... Kg5 {[%clk 0:00:06.6]} 79. Ne1 {[%clk 0:00:13.5]} 79... Ba6 {[%clk
0:00:05.6]} 80. Kg3 {[%clk 0:00:12.2]} 80... h5 {[%clk 0:00:06.5]} 81. h4+
{[%clk 0:00:12.5]} 81... Kf5 {[%clk 0:00:05.7]} 82. Ng2 {[%clk 0:00:12.1]} 82...
Ke4 {[%clk 0:00:05.5]} 83. Kf2 {[%clk 0:00:11.7]} 83... Bc4 {[%clk 0:00:03.2]}
84. Ne1 {[%clk 0:00:12.1]} 84... Kf4 {[%clk 0:00:02.5]} 85. Ng2+ {[%clk
0:00:12.6]} 85... Ke4 {[%clk 0:00:03.1]} 86. Ne1 {[%clk 0:00:13.2]} 86... Kd4
{[%clk 0:00:03.6]} 87. Ng2 {[%clk 0:00:13.3]} 87... Bd5 {[%clk 0:00:03.9]} 88.
Nf4 {[%clk 0:00:12.8]} 88... Bf3 {[%clk 0:00:04.4]} 89. Nxh5 {[%clk 0:00:11.8]}
89... Ke5 {[%clk 0:00:03.8]} 90. Ng3 {[%clk 0:00:11.7]} 90... Kf4 {[%clk
0:00:04.2]} 91. Nxe2+ {[%clk 0:00:11.8]} 91... Bxe2 {[%clk 0:00:03.4]} 92. Kxe2
{[%clk 0:00:12.7]} 92... g3 {[%clk 0:00:01.6]} 93. h5 {[%clk 0:00:11.4]} 93...
Kg5 {[%clk 0:00:01.9]} 94. Kf3 {[%clk 0:00:11.5]} 94... Kh6 {[%clk 0:00:02.7]}
95. Kxg3 {[%clk 0:00:11.9]} 95... Kxh5 {[%clk 0:00:03.6]} 1/2-1/2

[Event "Late-Titled-Tuesday-Blitz-March-26-2024"]
[Site "Chess.com"]
[Date "2024.03.26"]
[Round "6"]
[White "carokannlover213"]
[Black "SaqoChess_Twitch"]
[Result "1-0"]
[WhiteElo "2835"]
[BlackElo "2655"]
[TimeControl "180+1"]
[EndTime "15:09:46 PDT"]
[Termination "carokannlover213 won by checkmate"]

1. e4 {[%clk 0:03:00.9]} 1... c5 {[%clk 0:02:59.2]} 2. Nf3 {[%clk 0:02:59.6]}
2... d6 {[%clk 0:02:59.7]} 3. Bb5+ {[%clk 0:02:58.7]} 3... Bd7 {[%clk
0:02:59.8]} 4. Bxd7+ {[%clk 0:02:58.9]} 4... Qxd7 {[%clk 0:03:00.7]} 5. O-O
{[%clk 0:02:59.5]} 5... Nc6 {[%clk 0:03:00.7]} 6. c4 {[%clk 0:02:59.3]} 6... Nf6
{[%clk 0:02:59.9]} 7. Nc3 {[%clk 0:02:59.4]} 7... e6 {[%clk 0:02:58.8]} 8. d4
{[%clk 0:02:59.3]} 8... cxd4 {[%clk 0:02:58.8]} 9. Nxd4 {[%clk 0:03:00.2]} 9...
Be7 {[%clk 0:02:58.6]} 10. f3 {[%clk 0:02:56.7]} 10... O-O {[%clk 0:02:58.3]}
11. Be3 {[%clk 0:02:56.6]} 11... Rfc8 {[%clk 0:02:57.6]} 12. b3 {[%clk 0:02:55]}
12... Rd8 {[%clk 0:02:51.7]} 13. Rc1 {[%clk 0:02:44.9]} 13... d5 {[%clk
0:02:36.2]} 14. cxd5 {[%clk 0:02:43]} 14... exd5 {[%clk 0:02:36.4]} 15. Nxc6
{[%clk 0:02:41.8]} 15... bxc6 {[%clk 0:02:36.3]} 16. exd5 {[%clk 0:02:26.6]}
16... Nxd5 {[%clk 0:02:33.8]} 17. Nxd5 {[%clk 0:02:26.9]} 17... cxd5 {[%clk
0:02:34.1]} 18. Qd3 {[%clk 0:02:24.7]} 18... a5 {[%clk 0:02:21.7]} 19. Rfd1
{[%clk 0:02:16.4]} 19... a4 {[%clk 0:02:21.2]} 20. Bb6 {[%clk 0:02:07]} 20...
Rdb8 {[%clk 0:01:57.3]} 21. Bf2 {[%clk 0:01:51.3]} 21... axb3 {[%clk 0:01:56.4]}
22. axb3 {[%clk 0:01:52.2]} 22... h6 {[%clk 0:01:51.9]} 23. Bg3 {[%clk
0:01:45.3]} 23... Rb7 {[%clk 0:01:45.9]} 24. h3 {[%clk 0:01:20.5]} 24... Qb5
{[%clk 0:01:25.6]} 25. Qf5 {[%clk 0:01:07.9]} 25... Qd7 {[%clk 0:01:10.5]} 26.
Qc2 {[%clk 0:00:53]} 26... Bf6 {[%clk 0:00:59.5]} 27. Kh2 {[%clk 0:00:52.1]}
27... d4 {[%clk 0:00:59.3]} 28. Qe4 {[%clk 0:00:48.1]} 28... Re8 {[%clk
0:00:56.5]} 29. Qd3 {[%clk 0:00:48]} 29... Re3 {[%clk 0:00:54.7]} 30. Qxe3
{[%clk 0:00:37.5]} 30... dxe3 {[%clk 0:00:52.6]} 31. Rxd7 {[%clk 0:00:38.4]}
31... Rxd7 {[%clk 0:00:52.9]} 32. b4 {[%clk 0:00:37.3]} 32... e2 {[%clk
0:00:32.7]} 33. Rc2 {[%clk 0:00:33.6]} 33... Re7 {[%clk 0:00:17.3]} 34. Be1
{[%clk 0:00:33.5]} 34... Bd4 {[%clk 0:00:16.7]} 35. g3 {[%clk 0:00:29.8]} 35...
f5 {[%clk 0:00:16.1]} 36. Kg2 {[%clk 0:00:29.7]} 36... g5 {[%clk 0:00:15.8]} 37.
Rc4 {[%clk 0:00:28.4]} 37... Be3 {[%clk 0:00:14.5]} 38. Rc2 {[%clk 0:00:26.3]}
38... Bd4 {[%clk 0:00:14.7]} 39. Rd2 {[%clk 0:00:26.2]} 39... Bb6 {[%clk
0:00:12.6]} 40. Rd6 {[%clk 0:00:25.7]} 40... Be3 {[%clk 0:00:08.2]} 41. Rc6
{[%clk 0:00:23.1]} 41... h5 {[%clk 0:00:05.9]} 42. g4 {[%clk 0:00:17.5]} 42...
hxg4 {[%clk 0:00:05]} 43. hxg4 {[%clk 0:00:17.3]} 43... f4 {[%clk 0:00:04.7]}
44. Rc2 {[%clk 0:00:16.7]} 44... Bd4 {[%clk 0:00:04.6]} 45. Rc4 {[%clk
0:00:16.6]} 45... Be3 {[%clk 0:00:05]} 46. Rc2 {[%clk 0:00:13.3]} 46... Bd4
{[%clk 0:00:05.1]} 47. Rd2 {[%clk 0:00:13.2]} 47... Be3 {[%clk 0:00:03.7]} 48.
Rxe2 {[%clk 0:00:12.8]} 48... Kf7 {[%clk 0:00:03.6]} 49. Rc2 {[%clk 0:00:12.3]}
49... Rd7 {[%clk 0:00:04]} 50. Kf1 {[%clk 0:00:11.8]} 50... Rd1 {[%clk
0:00:03.9]} 51. Rb2 {[%clk 0:00:09.8]} 51... Bd4 {[%clk 0:00:03.4]} 52. Rb3
{[%clk 0:00:07]} 52... Ke6 {[%clk 0:00:03.3]} 53. Ke2 {[%clk 0:00:07.4]} 53...
Ra1 {[%clk 0:00:02]} 54. b5 {[%clk 0:00:07.7]} 54... Kd5 {[%clk 0:00:02.4]} 55.
b6 {[%clk 0:00:07.8]} 55... Ra8 {[%clk 0:00:01.8]} 56. b7 {[%clk 0:00:08.1]}
56... Rb8 {[%clk 0:00:02.5]} 57. Kd3 {[%clk 0:00:08.2]} 57... Be5 {[%clk
0:00:02.6]} 58. Rb5+ {[%clk 0:00:08.2]} 58... Ke6 {[%clk 0:00:02.5]} 59. Ke4
{[%clk 0:00:08.5]} 59... Bd6 {[%clk 0:00:03]} 60. Bc3 {[%clk 0:00:07.5]} 60...
Kd7 {[%clk 0:00:03.5]} 61. Kd5 {[%clk 0:00:07.5]} 61... Kc7 {[%clk 0:00:03.1]}
62. Ba5+ {[%clk 0:00:06.9]} 62... Kd7 {[%clk 0:00:03.7]} 63. Bc3 {[%clk
0:00:06.5]} 63... Bc7 {[%clk 0:00:04.1]} 64. Bb4 {[%clk 0:00:05.8]} 64... Bd8
{[%clk 0:00:04.5]} 65. Bd6 {[%clk 0:00:05.7]} 65... Bc7 {[%clk 0:00:05.1]} 66.
Bc5 {[%clk 0:00:04.1]} 66... Bd8 {[%clk 0:00:05.3]} 67. Ba7 {[%clk 0:00:04.4]}
67... Bc7 {[%clk 0:00:04.3]} 68. Bxb8 {[%clk 0:00:04.5]} 68... Bxb8 {[%clk
0:00:05.2]} 69. Ke4 {[%clk 0:00:05.1]} 69... Kc6 {[%clk 0:00:05.8]} 70. Rxg5
{[%clk 0:00:05.5]} 70... Kxb7 {[%clk 0:00:06.2]} 71. Rf5 {[%clk 0:00:06.4]}
71... Kc6 {[%clk 0:00:07]} 72. Rxf4 {[%clk 0:00:07.3]} 72... Bd6 {[%clk
0:00:07.4]} 73. Rf5 {[%clk 0:00:07.7]} 73... Kd7 {[%clk 0:00:08.3]} 74. Kd3
{[%clk 0:00:08.1]} 74... Ke6 {[%clk 0:00:09.2]} 75. Ke2 {[%clk 0:00:09]} 75...
Be7 {[%clk 0:00:10.1]} 76. Kf1 {[%clk 0:00:09.9]} 76... Bf6 {[%clk 0:00:10.9]}
77. Kg2 {[%clk 0:00:10.8]} 77... Be5 {[%clk 0:00:11.8]} 78. Kh3 {[%clk
0:00:11.7]} 78... Bf6 {[%clk 0:00:12.7]} 79. Kg2 {[%clk 0:00:12.5]} 79... Be5
{[%clk 0:00:13.6]} 80. Kf1 {[%clk 0:00:13.4]} 80... Bf6 {[%clk 0:00:14.5]} 81.
Ke2 {[%clk 0:00:14.3]} 81... Be5 {[%clk 0:00:15.4]} 82. Kd2 {[%clk 0:00:15.2]}
82... Bf6 {[%clk 0:00:16.3]} 83. Kd3 {[%clk 0:00:16.1]} 83... Be5 {[%clk
0:00:17.2]} 84. Ke4 {[%clk 0:00:17]} 84... Bf6 {[%clk 0:00:18.1]} 85. f4 {[%clk
0:00:17.3]} 85... Be7 {[%clk 0:00:18.7]} 86. Re5+ {[%clk 0:00:16.9]} 86... Kf7
{[%clk 0:00:18.6]} 87. Rd5 {[%clk 0:00:17.7]} 87... Bf6 {[%clk 0:00:19.2]} 88.
Rd3 {[%clk 0:00:18.6]} 88... Kg6 {[%clk 0:00:19.8]} 89. Rd1 {[%clk 0:00:19.5]}
89... Bg7 {[%clk 0:00:19.8]} 90. Rf1 {[%clk 0:00:20.4]} 90... Bf6 {[%clk
0:00:20.7]} 91. Rh1 {[%clk 0:00:21.3]} 91... Bg7 {[%clk 0:00:21.5]} 92. Rb1
{[%clk 0:00:19.8]} 92... Bf6 {[%clk 0:00:22.4]} 93. Rb6 {[%clk 0:00:20]} 93...
Kf7 {[%clk 0:00:22.1]} 94. Kf5 {[%clk 0:00:20.9]} 94... Bg7 {[%clk 0:00:23]} 95.
Rb7+ {[%clk 0:00:21.8]} 95... Kg8 {[%clk 0:00:23.7]} 96. g5 {[%clk 0:00:18.7]}
96... Kh7 {[%clk 0:00:23.7]} 97. Kg4 {[%clk 0:00:16.1]} 97... Kg6 {[%clk
0:00:23.8]} 98. f5+ {[%clk 0:00:17]} 98... Kh7 {[%clk 0:00:24.4]} 99. Kh5 {[%clk
0:00:17.3]} 99... Kh8 {[%clk 0:00:24.1]} 100. Kg6 {[%clk 0:00:17]} 100... Bf8
{[%clk 0:00:22.5]} 101. Rb8 {[%clk 0:00:13.9]} 101... Kg8 {[%clk 0:00:22.6]}
102. Ra8 {[%clk 0:00:10.9]} 102... Kh8 {[%clk 0:00:22.5]} 103. Re8 {[%clk
0:00:05.6]} 103... Kg8 {[%clk 0:00:22.1]} 104. Rd8 {[%clk 0:00:06.5]} 104... Kh8
{[%clk 0:00:23]} 105. Rxf8# {[%clk 0:00:05.9]} 1-0

[Event "Late-Titled-Tuesday-Blitz-March-26-2024"]
[Site "Chess.com"]
[Date "2024.03.26"]
[Round "6"]
[White "Andrei_Skvortsov"]
[Black "Fandorine"]
[Result "0-1"]
[WhiteElo "2709"]
[BlackElo "2902"]
[TimeControl "180+1"]
[EndTime "15:10:17 PDT"]
[Termination "Fandorine won by resignation"]

1. e4 {[%clk 0:03:00.9]} 1... g6 {[%clk 0:02:52.9]} 2. d4 {[%clk 0:02:59.9]}
2... Bg7 {[%clk 0:02:53.6]} 3. h3 {[%clk 0:03:00.7]} 3... d6 {[%clk 0:02:53.2]}
4. Nf3 {[%clk 0:03:01.1]} 4... Nf6 {[%clk 0:02:52.5]} 5. Bd3 {[%clk 0:03:01.5]}
5... O-O {[%clk 0:02:52.9]} 6. O-O {[%clk 0:03:02.1]} 6... Nc6 {[%clk
0:02:51.4]} 7. c3 {[%clk 0:03:01.6]} 7... Nd7 {[%clk 0:02:52]} 8. Re1 {[%clk
0:02:57.6]} 8... e5 {[%clk 0:02:52.3]} 9. Bc2 {[%clk 0:02:53.3]} 9... Qe8 {[%clk
0:02:50.7]} 10. a4 {[%clk 0:02:48.7]} 10... Kh8 {[%clk 0:02:50.2]} 11. Na3
{[%clk 0:02:46]} 11... a6 {[%clk 0:02:50.2]} 12. Nc4 {[%clk 0:02:45.2]} 12... b6
{[%clk 0:02:33.7]} 13. Bg5 {[%clk 0:02:32.7]} 13... Bb7 {[%clk 0:02:31.1]} 14.
Qd2 {[%clk 0:02:29.6]} 14... f6 {[%clk 0:02:18.6]} 15. Bh6 {[%clk 0:02:28.5]}
15... Qf7 {[%clk 0:02:19.2]} 16. Bxg7+ {[%clk 0:02:23.7]} 16... Qxg7 {[%clk
0:02:18.9]} 17. Ne3 {[%clk 0:02:17.4]} 17... Ne7 {[%clk 0:02:18.5]} 18. dxe5
{[%clk 0:02:02.6]} 18... fxe5 {[%clk 0:01:57.8]} 19. Ng5 {[%clk 0:02:02.5]}
19... Nf6 {[%clk 0:00:47.1]} 20. Ne6 {[%clk 0:01:54.9]} 20... Qh6 {[%clk
0:00:38.9]} 21. Nxf8 {[%clk 0:01:51.8]} 21... Rxf8 {[%clk 0:00:38.6]} 22. Nc4
{[%clk 0:01:46.3]} 22... g5 {[%clk 0:00:38.1]} 23. Re3 {[%clk 0:01:41]} 23...
Ng6 {[%clk 0:00:33.7]} 24. Rae1 {[%clk 0:01:19]} 24... Nf4 {[%clk 0:00:33.5]}
25. Rg3 {[%clk 0:01:12.5]} 25... Bc8 {[%clk 0:00:27.2]} 26. Ne3 {[%clk
0:01:09.9]} 26... Qh4 {[%clk 0:00:25]} 27. Nf5 {[%clk 0:01:03]} 27... Bxf5
{[%clk 0:00:22.5]} 28. exf5 {[%clk 0:01:03.9]} 28... g4 {[%clk 0:00:21.6]} 29.
Ree3 {[%clk 0:00:51.4]} 29... gxh3 {[%clk 0:00:15.4]} 30. gxh3 {[%clk
0:00:50.6]} 30... N4h5 {[%clk 0:00:13.1]} 31. Rg2 {[%clk 0:00:46.6]} 31... Nf4
{[%clk 0:00:12.4]} 32. Rgg3 {[%clk 0:00:34.4]} 32... N6h5 {[%clk 0:00:12.6]} 33.
Kh2 {[%clk 0:00:13.2]} 33... Nxg3 {[%clk 0:00:12.1]} 34. Rxg3 {[%clk 0:00:14.1]}
34... Qf6 {[%clk 0:00:10.5]} 35. Qe3 {[%clk 0:00:14]} 35... Rg8 {[%clk
0:00:08.8]} 36. Qf3 {[%clk 0:00:13.7]} 36... Rf8 {[%clk 0:00:07.4]} 37. c4
{[%clk 0:00:11.9]} 37... a5 {[%clk 0:00:06.8]} 38. b3 {[%clk 0:00:12.1]} 38...
Qf7 {[%clk 0:00:06.3]} 39. Be4 {[%clk 0:00:12.3]} 39... Qh5 {[%clk 0:00:06.1]}
40. Rg4 {[%clk 0:00:09.8]} 40... Qh6 {[%clk 0:00:05.9]} 41. Qg3 {[%clk 0:00:10]}
41... Qf6 {[%clk 0:00:06.3]} 42. h4 {[%clk 0:00:08.6]} 42... Nh5 {[%clk
0:00:06.8]} 43. Qf3 {[%clk 0:00:08.6]} 43... Ng7 {[%clk 0:00:07.4]} 44. Rg5
{[%clk 0:00:07.8]} 44... h6 {[%clk 0:00:07.9]} 45. Rg6 {[%clk 0:00:07.9]} 45...
Qxg6 {[%clk 0:00:08.4]} 46. fxg6 {[%clk 0:00:08.8]} 46... Rxf3 {[%clk
0:00:08.8]} 47. Bxf3 {[%clk 0:00:09.7]} 47... Nf5 {[%clk 0:00:08.7]} 48. Kh3
{[%clk 0:00:09.6]} 48... Kg7 {[%clk 0:00:07.9]} 49. h5 {[%clk 0:00:10.3]} 49...
Nd4 {[%clk 0:00:08.6]} 50. Bd1 {[%clk 0:00:10.1]} 50... Kf6 {[%clk 0:00:09.2]}
51. Kg4 {[%clk 0:00:10.3]} 51... Ne6 {[%clk 0:00:09.9]} 52. Kf3 {[%clk
0:00:10.1]} 52... Nc5 {[%clk 0:00:08.9]} 53. Ke3 {[%clk 0:00:10.6]} 53... Ne6
{[%clk 0:00:08.4]} 54. Ke4 {[%clk 0:00:10.5]} 54... c6 {[%clk 0:00:08.7]} 55.
Ke3 {[%clk 0:00:10.1]} 55... d5 {[%clk 0:00:07.5]} 56. cxd5 {[%clk 0:00:09.4]}
56... cxd5 {[%clk 0:00:08]} 57. Kd3 {[%clk 0:00:09.6]} 57... Ng7 {[%clk
0:00:07.2]} 58. Ke3 {[%clk 0:00:09.7]} 58... Kg5 {[%clk 0:00:06.4]} 59. Kd3
{[%clk 0:00:09.5]} 59... Kf4 {[%clk 0:00:06.9]} 60. Kd2 {[%clk 0:00:09.4]} 60...
Ke4 {[%clk 0:00:06.4]} 61. Be2 {[%clk 0:00:07.4]} 61... Kd4 {[%clk 0:00:06.6]}
62. Bd1 {[%clk 0:00:07.7]} 62... e4 {[%clk 0:00:06.9]} 63. Be2 {[%clk
0:00:08.2]} 63... Ke5 {[%clk 0:00:07.3]} 64. Bd1 {[%clk 0:00:08.7]} 64... d4
{[%clk 0:00:07.7]} 65. Be2 {[%clk 0:00:09.3]} 65... Kf4 {[%clk 0:00:07.3]} 66.
Bd1 {[%clk 0:00:09.7]} 66... Ne6 {[%clk 0:00:05.9]} 67. Be2 {[%clk 0:00:09.1]}
67... d3 {[%clk 0:00:05]} 68. Bd1 {[%clk 0:00:08.3]} 68... Ng7 {[%clk
0:00:05.4]} 69. Kc3 {[%clk 0:00:07.4]} 69... e3 {[%clk 0:00:04.4]} 70. Kxd3
{[%clk 0:00:02.5]} 70... exf2 {[%clk 0:00:04.8]} 71. Ke2 {[%clk 0:00:03.1]}
71... Nxh5 {[%clk 0:00:02.5]} 72. Kxf2 {[%clk 0:00:03.7]} 72... Ng7 {[%clk
0:00:03.3]} 73. Kg2 {[%clk 0:00:04.3]} 73... Kg5 {[%clk 0:00:03.3]} 74. Kg3
{[%clk 0:00:04.8]} 74... Kxg6 {[%clk 0:00:03.4]} 75. Kf4 {[%clk 0:00:04.8]}
75... Kf6 {[%clk 0:00:04.1]} 76. Ke4 {[%clk 0:00:05.1]} 76... Ke6 {[%clk
0:00:04.8]} 77. Kd4 {[%clk 0:00:05.5]} 77... Kd6 {[%clk 0:00:05.3]} 78. Ke4
{[%clk 0:00:04.8]} 78... Ne6 {[%clk 0:00:05.4]} 79. Kf5 {[%clk 0:00:04.3]} 79...
Nd4+ {[%clk 0:00:06.1]} 80. Kg6 {[%clk 0:00:04.5]} 80... Kc5 {[%clk 0:00:06.7]}
81. Kxh6 {[%clk 0:00:04.9]} 81... Kb4 {[%clk 0:00:07.4]} 82. Kg5 {[%clk
0:00:05.6]} 82... Nxb3 {[%clk 0:00:08.2]} 83. Kf4 {[%clk 0:00:06.2]} 83... Nc5
{[%clk 0:00:09]} 84. Ke3 {[%clk 0:00:06.6]} 84... Nxa4 {[%clk 0:00:09.8]} 85.
Kd2 {[%clk 0:00:07.3]} 85... b5 {[%clk 0:00:10.4]} 86. Kc1 {[%clk 0:00:07.3]}
86... Nb6 {[%clk 0:00:11.1]} 87. Kb2 {[%clk 0:00:07.6]} 87... a4 {[%clk
0:00:11.8]} 88. Ka2 {[%clk 0:00:08.2]} 88... Ka5 {[%clk 0:00:12.5]} 89. Be2
{[%clk 0:00:08.6]} 89... b4 {[%clk 0:00:12.4]} 90. Kb2 {[%clk 0:00:09.2]} 90...
Nd7 {[%clk 0:00:12.5]} 91. Bc4 {[%clk 0:00:09.2]} 91... Kb6 {[%clk 0:00:12.2]}
92. Be6 {[%clk 0:00:09.4]} 92... Ne5 {[%clk 0:00:11.1]} 93. Bd5 {[%clk
0:00:09.1]} 93... Kc5 {[%clk 0:00:11.2]} 94. Bg8 {[%clk 0:00:09.7]} 94... Nc4+
{[%clk 0:00:11.8]} 95. Ka2 {[%clk 0:00:09.8]} 95... b3+ {[%clk 0:00:12.2]} 96.
Kb1 {[%clk 0:00:10.5]} 96... Kb4 {[%clk 0:00:12.6]} 97. Ka1 {[%clk 0:00:10.7]}
97... a3 {[%clk 0:00:13]} 98. Bf7 {[%clk 0:00:10.6]} 98... Kc3 {[%clk
0:00:13.5]} 99. Be6 {[%clk 0:00:10.6]} 99... Na5 {[%clk 0:00:11.3]} 100. Bf7
{[%clk 0:00:09.9]} 100... Nc6 {[%clk 0:00:11.2]} 101. Bd5 {[%clk 0:00:09.7]}
101... Nd4 {[%clk 0:00:11.6]} 102. Be4 {[%clk 0:00:09.7]} 102... Nc2+ {[%clk
0:00:10]} 0-1